Cogmind - Beta 10.2 @@@ ROGUE MODE // 2021.07.13 @ 19:41:20 Player: User Result: Destroyed by G-34 Mercenary with Small Laser Performance ------------- Evolutions (0) 0 Regions Visited (2) 400 Robots Destroyed (10) 50 Value Destroyed (276) 276 Prototype IDs (0) 0 Alien Tech Used (0) 0 Bonus (0) 0 TOTAL SCORE: 726 Bonus ------- None Cogmind --------- Core Integrity 0/250 Matter 300/300 Energy 100/100 System Corruption 0% Temperature Cool (6) Movement Walking (120) Location -10/Mines Parts ------- > --- POWER (1) -------- Backup Power I > --- PROPULSION (2) --- Aluminum Leg > --- UTILITY (2) ------ Small Storage Unit Targeting Computer > --- WEAPON (2) ------- (None) > --- INVENTORY (6) ---- Light Ion Engine Light Ion Engine Medium Matter Pod (8) Peak State ------------ > --- POWER ------------ Backup Power I > --- PROPULSION ------- Aluminum Leg Aluminum Leg > --- UTILITY ---------- Small Storage Unit Targeting Computer > --- WEAPON ----------- Small Laser Light Assault Rifle > --- INVENTORY -------- Light Ion Engine Light Ion Engine Welding Torch Welding Torch [Rating: 7] Favorites ----------- Power Backup Power I Engine Backup Power I Propulsion Aluminum Leg Leg Aluminum Leg Utility Small Storage Unit Storage Small Storage Unit Processor Targeting Computer Weapon Welding Torch Energy Gun Small Laser Ballistic Gun Light Assault Rifle Special Weapon Welding Torch Build | -11 -10 -10 ------- Run | Scr Mat Min Slots Evolved . | . . . Power . | . . . Propulsion . | . . . Utility . | . . . Weapon . | . . . Parts Attached 13 | 4 9 . Power . | . . . Engine . | . . . Core . | . . . Reactor . | . . . Propulsion 4 | 2 2 . Treads . | . . . Leg 4 | 2 2 . Wheel . | . . . Hover . | . . . Flight . | . . . Utility 2 | . 2 . Device . | . . . Storage 1 | . 1 . Processor 1 | . 1 . Hackware . | . . . Protection . | . . . Artifact . | . . . Weapon 7 | 2 5 . Energy Gun 3 | 1 2 . Energy Cannon . | . . . Ballistic Gun 2 | 1 1 . Ballistic Cannon . | . . . Launcher . | . . . Special Weapon 2 | . 2 . Impact Weapon . | . . . Slashing Weapon . | . . . Piercing Weapon . | . . . Special Melee Weapon . | . . . Unidentified Prototypes . | . . . Parts Lost 7 | . 4 3 Power . | . . . Propulsion 2 | . 1 1 Utility . | . . . Weapon 5 | . 3 2 Highest Loss Streak 4 | . 4 2 Average Slot Usage (%) 79 | . 71 91 Engine 8 | . 4 14 Leg 26 | . 27 26 Storage 12 | . 12 14 Processor 6 | . 1 14 Energy Gun 6 | . 10 . Ballistic Gun 7 | . 12 . Special Weapon 10 | . 2 21 Naked Turns . | . . . Heaviest Build 8 | 4 8 7 Greatest Support 20 | 20 20 20 Greatest Overweight (x) . | . . . Average Overweight (x) . | . . . Largest Inventory Capacity 6 | 4 6 6 Average Capacity 5 | 4 5 6 Most Carried 5 | 4 5 3 Average Carried 2 | 2 2 3 Final Capacity 6 | 4 6 6 Final Carried 4 | 4 3 3 Class Distribution -------------------- 100% | Mutant Dominant Class ---------------- Mutant | -10/Materials Mutant | -10/Mines Resources | -11 -10 -10 ----------- Run | Scr Mat Min Matter Collected 334 | 240 94 . Remotely . | . . . Salvage Created 419 | . 419 . Parts 13 | . 13 . Haulers Intercepted 2 | . 2 . Recyclers Shooed . | . . . Parts Field Recycled . | . . . Retrieved Matter . | . . . Parts Self-Destructed . | . . . Prevented . | . . . Kills | -11 -10 -10 ------- Run | Scr Mat Min Combat Hostiles Destroyed 6 | . 6 . Guns 6 | . 6 . Classes Destroyed 4 | . 4 . Hauler 2 | . 2 . Operator 1 | . 1 . Watcher 1 | . 1 . Grunt 6 | . 6 . Best Kill Streak 5 | . 5 . Combat Bots Only 5 | . 5 . Max Kills in Single Turn 1 | . 1 . Gunslinging . | . . . Exploded . | . . . Melee . | . . . Uniques/NPCs Destroyed . | . . . Combat | -11 -10 -10 -------- Run | Scr Mat Min Damage Taken 995 | . 672 323 Core 255 | . 153 102 Absorbed by Shields . | . . . Core Remaining (%) 100 | 100 . . Volleys Fired 51 | . 46 5 Largest 2 | . 2 2 Hottest 70 | . 70 40 Shots Fired 85 | . 78 7 Gun 78 | . 78 . Cannon . | . . . Launcher . | . . . Special 7 | . . 7 Kinetic 43 | . 43 . Thermal 42 | . 35 7 Explosive . | . . . Electromagnetic . | . . . Robot Hit Streak 8 | . 8 5 Robot Miss Streak 2 | . 2 1 Penetration Max . | . . . Secondary Targets 1 | . 1 . Max Gunslinging Chain 1 | . 1 . Shots Hit Robots 60 | . 55 5 Core Hits 29 | . 23 6 Critical Hits 1 | . 1 . Critical Kills 1 | . 1 . Critical Parts Destroyed . | . . . Melee Attacks . | . . . Impact . | . . . Slashing . | . . . Piercing . | . . . Sneak Attacks . | . . . Combat Hostiles . | . . . Follow-up Attacks . | . . . Damage Inflicted 668 | . 635 33 Guns 635 | . 635 . Cannons . | . . . Explosions . | . . . Melee . | . . . Ramming 15 | . . 15 Kinetic 308 | . 308 . Thermal 345 | . 327 18 Explosive . | . . . Electromagnetic . | . . . Impact . | . . . Slashing . | . . . Piercing . | . . . Highest Corruption . | . . . Average Corruption . | . . . Corruption Purged . | . . . Overload Shots . | . . . Overflow Damage . | . . . Projectiles . | . . . Explosions . | . . . Melee . | . . . Knockbacks . | . . . Impact . | . . . Kinetic . | . . . Secondary . | . . . Self-Inflicted Damage 3 | . . 3 Shots . | . . . Rammed 6 | . . 6 Targets Rammed 9 | . . 9 Kicked 3 | . . 3 Crushed . | . . . Highest Temperature 83 | . 83 . Average Temperature 21 | . 21 . Received Heat Transfer 540 | . 366 174 Siege Activations . | . . . Robots Corrupted . | . . . Combat Hostiles . | . . . Parts Fried . | . . . Impact Corruptions . | . . . Robots Melted . | . . . Combat Hostiles . | . . . Parts Melted 2 | . 2 . Heat Transferred 922 | . 797 125 Parts Sabotaged . | . . . Parts Stolen . | . . . Parts Stripped . | . . . Power Chain Reactions . | . . . Missiles Intercepted . | . . . Alert | -11 -10 -10 ------- Run | Scr Mat Min Peak Influence 202 | . 202 78 Initial 78 | . . 78 Average 85 | . 111 71 Maximum Alert Level 1 | . 1 . Low Security (%) 91 | 100 84 100 Level 1 8 | . 15 . Level 2 . | . . . Level 3 . | . . . Level 4 . | . . . Level 5 . | . . . High Security . | . . . Max Security . | . . . Squads Dispatched 2 | . 2 . Investigation 1 | . 1 . Extermination . | . . . Reinforcement 1 | . 1 . Assault . | . . . Garrison . | . . . Intercept . | . . . Construction Impeded . | . . . Haulers Reinforced . | . . . Stealth | -11 -10 -10 --------- Run | Scr Mat Min Distress Signals 1 | . 1 . Communications Jammed . | . . . Distress Signals . | . . . Times Spotted 16 | . 12 4 Peak Tracking Total 5 | . 5 4 Tactical Retreats . | . . . Traps | -11 -10 -10 ------- Run | Scr Mat Min Traps Triggered . | . . . Indirectly . | . . . Trap Hack Attempts . | . . . Triggered . | . . . Disarmed . | . . . Reprogrammed . | . . . Reused . | . . . Traps Extracted . | . . . Installed . | . . . Triggered . | . . . Machines | -11 -10 -10 ---------- Run | Scr Mat Min Machines Disabled 1 | . 1 . Max in Single Turn 1 | . 1 . Machines Sabotaged . | . . . Garrisons Compromised . | . . . Overloaded Fab Kills . | . . . Fab Network Shutdowns . | . . . Hacking | -11 -10 -10 --------- Run | Scr Mat Min Machines Accessed 2 | . 2 . Terminals . | . . . Fabricators . | . . . Repair Stations 1 | . 1 . Recycling Units 1 | . 1 . Scanalyzers . | . . . Garrison Access . | . . . Total Hacks 5 | . 5 . Successful 2 | . 2 . Failed 3 | . 3 . Catastrophic . | . . . Database Lockouts . | . . . Manual . | . . . Terminals . | . . . Fabricators . | . . . Repair Stations 3 | . 3 . Recycling Units 2 | . 2 . Scanalyzers . | . . . Garrison Access . | . . . Terminal Hacks . | . . . Fabricator Hacks . | . . . Repair Station Hacks 2 | . 2 . Scan Component 1 | . 1 . Refit 1 | . 1 . Recycling Unit Hacks . | . . . Scanalyzer . | . . . Garrison Access Hacks . | . . . Unauthorized Hacks . | . . . Terminals . | . . . Fabricators . | . . . Repair Stations . | . . . Recycling Units . | . . . Scanalyzers . | . . . Garrison Access . | . . . Data Cores Recovered . | . . . Used . | . . . Hacking Detections 2 | . 2 . Full Trace Events 2 | . 2 . Feedback Events . | . . . Feedback Blocked . | . . . Robot Schematics Acquired . | . . . Robots Built . | . . . Matter . | . . . Time . | . . . Total Robot Build Rating . | . . . Part Schematics Acquired . | . . . Parts Built . | . . . Matter . | . . . Time . | . . . Total Part Build Rating . | . . . Parts Repaired . | . . . Time . | . . . Parts Recycled . | . . . Recycled Matter . | . . . Retrieved Matter . | . . . Retrieved Components . | . . . Parts Scanalyzed . | . . . Part Schematics Acquired . | . . . Parts Damaged . | . . . Bothacking | -11 -10 -10 ------------ Run | Scr Mat Min Used RIF Installer . | . . . Robots Hacked . | . . . Non-combat . | . . . Combat . | . . . Robot Hacks Applied . | . . . Relay Couplers Released . | . . . Robots Rewired . | . . . Allies Hacked . | . . . Hacks Repelled . | . . . Allies | -11 -10 -10 -------- Run | Scr Mat Min Total Allies . | . . . Largest Group . | . . . Highest-Rated Group . | . . . Highest-Rated Ally . | . . . Total Orders . | . . . Ally Attacks . | . . . Total Damage . | . . . Kills . | . . . Allies Corrupted . | . . . Allies Melted . | . . . Intel | -11 -10 -10 ------- Run | Scr Mat Min Robot Analysis Total . | . . . Derelict Logs Recovered . | . . . Drone Launches . | . . . Drone Recoveries . | . . . Exploration | -11 -10 -10 ------------- Run | Scr Mat Min Turns Passed 586 | 58 302 226 Spaces Moved 302 | 47 134 121 Core 14 | 14 . . Treads . | . . . Legs 288 | 33 134 121 Wheels . | . . . Hover . | . . . Flight . | . . . Fastest Speed 50 | 50 120 120 Average Speed 116 | 99 120 120 Slowest Speed 120 | 120 120 120 Overloaded Moves . | . . . Propulsion Burnouts . | . . . Robots Hopped . | . . . Cave-ins Triggered . | . . . Exploration Rate (%) 27 | 4 42 35 Regions Visited 2 Branch Regions 1 Pre-discovered Areas . | . . . Known Exits Taken . | . . . Unknown Exits Taken 2 | 1 1 . Scrap Searched . | . . . Spaces Dug . | . . . Terrain Destroyed . | . . . Melee . | . . . Projectile . | . . . AOE . | . . . Terrain Rammed . | . . . Walls Destroyed . | . . . Machines Disabled . | . . . Actions | -11 -10 -10 --------- Run | Scr Mat Min Total 454 | 58 204 192 Wait 62 | . 5 57 Move 300 | 46 133 121 Hop . | . . . Pick Up 16 | 8 8 . Fast Attach . | . . . Attach 10 | 4 6 . Detach . | . . . Swap 3 | . 3 . Drop 3 | . 3 . Fire 51 | . 46 5 Melee . | . . . Ram . | . . . Kick 9 | . . 9 Crush . | . . . Escape Stasis . | . . . Rewire . | . . . Trap . | . . . Miscellaneous . | . . . Route ------- -11/Scrapyard -10/Materials -10/Mines History --------- Turn | Location | Event 5 | -11/Scrapyard | Discovered new exit (range 15) 59 | -11/Scrapyard | Entered Materials 170 | -10/Materials | Core integrity fell below 50% 187 | -10/Materials | Lost 4 parts (1n3w) 312 | -10/Materials | Build established: Mutant 322 | -10/Materials | Discovered new exit (range 16) 361 | -10/Materials | Entered Mines 462 | -10/Mines | Excavation squad dispatched 462 | -10/Mines | A large section of the Mines collapsed 573 | -10/Mines | Core integrity fell below 20% 587 | -10/Mines | Destroyed by G-34 Mercenary with Small Laser Last Messages --------------- U-05 Engineer lays Concrete. T-07 Excavator is excavating. U-05 Engineer lays Concrete. Welding Torch destroyed. T-07 Excavator is excavating. U-05 Engineer lays Concrete. T-07 Excavator is excavating. U-05 Engineer lays Concrete. T-07 Excavator is excavating. U-05 Engineer lays Concrete. T-07 Excavator is excavating. Aluminum Leg destroyed. Kicked G-34 Mercenary out of the way. Slammed into G-34 Mercenary. Destabilizing: System interference. Targeting Computer temporarily disabled. Slammed into G-34 Mercenary. Kicked G-34 Mercenary out of the way. Slammed into G-34 Mercenary. Kicked G-34 Mercenary out of the way. Map ----- +----------------------------------------------------+ | ?????????????????????????????????????????????????? | | ?????????????????????????????????????????????????? | | ?????????????????????????????????????????????????? | | ?????????????????????????????????????????????????? | | ?????????????????????????????????????????????????? | | ????????????????? ??????????????????????????????? | | ???????????????? ??????????????????????????????? | | ????????????????? #?????????????????????????????? | | ????????????????? ?????????????????????????????? | | ????????????????? ?????????????????????????????? | | ????????????????? ?????????????????????????????? | | ?????????????????# #????????????????????????????? | | ????????????????## ????????????????????????????? | | ????????????????# ????????????????????????????? | | ???????????????## #????????????????????????????? | | ??????????????## #????????????????????????????? | | ??????????????# #????????????????????????????? | | ??????????????# #?????????????????#??????????? | | ???????????????# ##???????????????? ??????????? | | ??????????????## ######?????????? ??????????? | | ??????????????# #?????????? ##?????????? | | ?????????# ####g#?????????? #?????????? | | ?????????# #??# #?????????? #?????????? | | ?????????## ## ??# #?????????? #?????????? | | ??????????#???# ## #?# #?????????? #?????????? | | ??????????????# ?## ###@##????####? #?????????? | | ??????????????#???## g #???## ## #?????????? | | ???????????????????# #### #??## ##????????# | | ??????????????????? #??# #### ##???????# | | ???????????????????# #??# # ##??????# | | ???????????????????? #??##### # ## ##?????# | | ???????????????????? ??????######### #?????# | | ???????????????????? ??????????## #?????# | | ???????????????????? ???????????# #?????# | | ???????????????????? ??????###?## #?????# | | ????????????????????########## ## #????? | | ??????????????????????# ##### #????? | | ??????????????????????????#### ##???? #????? | | ?????????????????????????????## ##?????? #????? | | ??????????????????????# #####?## #????##??#????? | | ??????????????????????# #### ##???? ??????? | | ?????????????????# ### #????? ???????? | | ?????????????????#????????# #######????? ???????? | | ??????????????????????????# #?????????## ???????? | | ??????????????????????????# ######????# ???????? | | ??????????????????????????# #????# #???????? | | ??????????????????????????###### #????# #???????? | | ???????????????????????????????# #????# #???????? | | ???????????????????????????????# #????# #???????? | | ??????????????????????????????## #????# #???????? | +----------------------------------------------------+ Best States ------------- Heat Dissipation 25 Energy Generation 9 Energy Capacity 100 Matter Stores 300 Matter Capacity 300 Sight Range 16 Terrain Scan Density 10 Evasion (%) 50 Targeting Accuracy 5 Item Schematics ----------------- None Robot Schematics ------------------ None Fabricated ------------ Nothing Alien Tech Used ----------------- None Achievements -------------- None Challenges ------------ None Game ------ Seed OverloadDeepUnit Manual? 0 Play Time 00:07:27 Cumulative 3.7 hours Start 2021.07.13 @ 19:35:01 End 2021.07.13 @ 19:41:20 Sessions 1 Manual Loads 0 Difficulty Rogue Special Mode None Game No. 7 Rogue 7 Adventurer 0 Explorer 0 Win Type - Total 0 Types 0/0/0/0/0/0/0/0/0 Lore% 2 Gallery% 7 Achievement% 8 Wizard Run 0 Options --------- ASCII 0 Keyboard 0 Movement Mouse Keybinds 0 Fullscreen 1 Font 20/Terminus Map View 66x50 Tactical HUD 0 Map Filters NONE Filters NONE Steam 1 RUN: bf60ed3a-1ad5-4023-b8e9-2228204e1adc